Cogmind - Beta 17 @@@ ROGUE MODE // 2026.08.14 @ 16:11:56 Player: Mingebag Result: Destroyed by VK-02N(R) with Subdweller Machine Gun Performance ------------- Evolutions (0) 0 Regions Visited (3) 600 Robots Destroyed (34) 170 Value Destroyed (743) 743 Prototype IDs (0) 0 Alien Tech Used (0) 0 Bonus (0) 0 TOTAL SCORE: 1513 Bonus ------- None Cogmind --------- Core Integrity 0/250 Matter 275/300 Energy 113/125 System Corruption 0% Temperature Cool (0) Movement Treading (160) Location -10/Subcaves Parts ------- > --- POWER (1) -------- Light Ion Engine > --- PROPULSION (2) --- Light Treads Light Treads > --- UTILITY (2) ------ Large Storage Unit Core Shielding > --- WEAPON (2) ------- Particle Gun Light Cannon > --- INVENTORY (15) --- Light Ion Engine Light Ion Engine Light Nuclear Core Light Treads Light Treads Small Storage Unit Large Matter Pod (150) Improved Propulsion Shielding Medium Laser Heavy Assault Rifle Heavy Assault Rifle Light Cannon Light Cannon Mining Laser Peak State ------------ > --- POWER ------------ Light Ion Engine > --- PROPULSION ------- Light Treads Light Treads > --- UTILITY ---------- Large Storage Unit Core Shielding > --- WEAPON ----------- Particle Gun Light Cannon > --- INVENTORY -------- Light Ion Engine Light Ion Engine Light Nuclear Core Light Treads Light Treads Small Storage Unit Large Matter Pod Improved Propulsion Shielding Medium Laser Heavy Assault Rifle Heavy Assault Rifle Light Cannon Light Cannon Mining Laser [Rating: 10] Favorites ----------- Power Ion Engine Engine Ion Engine Propulsion Light Treads Treads Light Treads Utility Large Storage Unit Device Improved Terrain Scanner Storage Large Storage Unit Protection Light Armor Plating Weapon Light Cannon Energy Gun Medium Laser Ballistic Gun Light Assault Rifle Ballistic Cannon Light Cannon Build | -11 -10 -10 -10 ------- Run | Yrd Mat Min Sub Slots Evolved . | . . . . Power . | . . . . Propulsion . | . . . . Utility . | . . . . Weapon . | . . . . Parts Attached 20 | 8 7 4 1 Power 3 | 2 1 . . Engine 3 | 2 1 . . Core . | . . . . Reactor . | . . . . Propulsion 6 | 2 2 2 . Treads 6 | 2 2 2 . Leg . | . . . . Wheel . | . . . . Hover . | . . . . Flight . | . . . . Utility 6 | 2 2 2 . Device 2 | 1 . 1 . Storage 2 | 1 1 . . Processor . | . . . . Hackware . | . . . . Protection 2 | . 1 1 . Artifact . | . . . . Weapon 5 | 2 2 . 1 Energy Gun 2 | 1 . . 1 Energy Cannon . | . . . . Ballistic Gun 1 | 1 . . . Ballistic Cannon 2 | . 2 . . Launcher . | . . . . Special Weapon . | . . . . Impact Weapon . | . . . . Slashing Weapon . | . . . . Piercing Weapon . | . . . . Special Melee Weapon . | . . . . Unidentified Prototypes . | . . . . Parts Lost 6 | . 3 2 1 Power 2 | . 1 1 . Propulsion 1 | . 1 . . Utility 2 | . 1 1 . Weapon 1 | . . . 1 Highest Loss Streak 2 | . 2 1 1 To Critical Strikes . | . . . . Average Backups 12 | 3 10 14 15 Power 2 | . 2 2 3 Propulsion 1 | 1 1 2 2 Utility 2 | . 2 3 3 Weapon 5 | 1 4 6 7 Tool/Special . | . . . . Unused Backups 18 | . 5 1 12 Power 3 | . . . 3 Propulsion 5 | . 4 . 1 Utility 3 | . . 1 2 Weapon 7 | . 1 . 6 Tool/Special . | . . . . Average Slot Usage (%) 99 | . 99 99 99 Engine 13 | . 13 14 14 Treads 27 | . 27 28 28 Device 3 | . 5 1 . Storage 14 | . 14 14 14 Protection 10 | . 8 12 14 Energy Gun 6 | . 13 . . Ballistic Gun 6 | . 12 . . Ballistic Cannon 14 | . 2 28 27 Peak Build Rating 10 | 9 9 9 10 Average Rating 8 | 6 8 8 9 On Entrance 6 | . 9 8 9 Avg Prop Armor Cover (%) . | . . . . Naked Turns . | . . . . Heaviest Build 34 | 14 34 34 30 Greatest Support 40 | 40 40 40 40 Greatest Overweight (x) . | . . . . Average Overweight (x) . | . . . . Largest Inventory Capacity 15 | 8 15 15 15 Average Capacity 12 | 7 11 15 15 Most Carried 15 | 6 15 15 15 Average Carried 12 | 3 10 14 14 Final Capacity 15 | 8 15 15 15 Final Carried 15 | 6 15 15 14 Class Distribution -------------------- 100% | Mutant Dominant Class ---------------- Mutant | -10/Materials Mutant | -10/Mines Mutant | -10/Subcaves Resources | -11 -10 -10 -10 ----------- Run | Yrd Mat Min Sub Matter Collected 831 | 228 433 170 . Remotely . | . . . . Salvage Created 1099 | 17 991 10 81 Parts 70 | 3 65 . 2 Haulers Intercepted . | . . . . Recyclers Shooed 2 | . 2 . . Parts Field Recycled . | . . . . Retrieved Matter . | . . . . Parts Self-Destructed . | . . . . Prevented . | . . . . Parts Restored . | . . . . Kills | -11 -10 -10 -10 ------- Run | Yrd Mat Min Sub Combat Hostiles Destroyed 32 | . 24 6 2 Guns 22 | . 21 . 1 Cannons 10 | . 3 6 1 Classes Destroyed 8 | 1 5 1 1 Tunneler 1 | 1 . . . Recycler 3 | . 3 . . Operator 3 | . 3 . . Watcher 1 | . 1 . . Swarmer 12 | . 12 . . Grunt 12 | . 12 . . Subdweller 2 | . . . 2 Assembled 6 | . . 6 . Best Kill Streak 6 | 1 6 2 2 Combat Bots Only 6 | . 6 2 2 Max Kills in Single Turn 1 | 1 1 1 1 Gunslinging . | . . . . Exploded . | . . . . Melee . | . . . . Uniques/NPCs Destroyed . | . . . . Combat | -11 -10 -10 -10 -------- Run | Yrd Mat Min Sub Hostile Shots Fired 163 | . 119 26 18 Missed 37 | . 24 5 8 Hits 126 | . 95 21 10 Melee 2 | . . 2 . Projectile 124 | . 95 19 10 Damage Taken 1370 | . 938 290 142 Core 252 | . 205 12 35 Absorbed by Shields . | . . . . Redirected to Shielding 8 | . . 2 6 Core Remaining (%) 100 | 100 . . . Volleys Fired 114 | 4 92 15 3 Largest 2 | 2 2 2 2 Hottest 95 | 70 80 60 95 Shots Fired 228 | 8 184 30 6 Gun 175 | 8 166 . 1 Cannon 53 | . 18 30 5 Launcher . | . . . . Special . | . . . . Kinetic 137 | 4 98 30 5 Thermal 91 | 4 86 . 1 Explosive . | . . . . Electromagnetic . | . . . . Robot Hit Streak 15 | 2 15 3 2 Robot Miss Streak 7 | 2 7 3 1 Penetration Max . | . . . . Secondary Targets 1 | . 1 . . Max Gunslinging Chain 1 | . 1 . . Shots Hit Robots 140 | 3 121 13 3 Core Hits 64 | 1 51 10 2 Critical Kills . | . . . . Critical Parts Destroyed . | . . . . Critical Strikes 9 | . 9 . . Burn 8 | . 8 . . Blast 1 | . 1 . . Melee Attacks . | . . . . Impact . | . . . . Slashing . | . . . . Piercing . | . . . . Sneak Attacks . | . . . . Combat Hostiles . | . . . . Follow-up Attacks . | . . . . Damage Inflicted 1719 | 35 1373 259 52 Guns 1212 | 35 1161 . 16 Cannons 499 | . 212 251 36 Explosions . | . . . . Melee . | . . . . Ramming 8 | . . 8 . Kinetic 896 | 10 599 251 36 Thermal 815 | 25 774 . 16 Explosive . | . . . . Electromagnetic . | . . . . Impact . | . . . . Slashing . | . . . . Piercing . | . . . . Highest Corruption . | . . . . Average Corruption . | . . . . Corruption Purged . | . . . . Corruption Blocked . | . . . . Overload Shots . | . . . . Overflow Damage . | . . . . Projectiles . | . . . . Explosions . | . . . . Melee . | . . . . Knockbacks 6 | . 4 2 . Impact . | . . . . Kinetic 6 | . 4 2 . Secondary . | . . . . Self-Inflicted Damage . | . . . . Shots . | . . . . Rammed 2 | . . 2 . Targets Rammed 2 | . . 2 . Kicked . | . . . . Crushed . | . . . . Highest Temperature 222 | 60 222 45 . Average Temperature 63 | 25 69 16 . Received Heat Transfer 300 | . 279 . 21 Siege Activations . | . . . . Martial Activations . | . . . . Shielding Activations . | . . . . Robots Disrupted . | . . . . Combat Hostiles . | . . . . Robots Corrupted . | . . . . Combat Hostiles . | . . . . Parts Fried . | . . . . Impact Corruptions . | . . . . Robots Melted . | . . . . Combat Hostiles . | . . . . Parts Melted 6 | . 6 . . Heat Transferred 2997 | 74 2886 . 37 Parts Sabotaged . | . . . . Parts Stolen . | . . . . Parts Stripped . | . . . . Power Chain Reactions . | . . . . Alert | -11 -10 -10 -10 ------- Run | Yrd Mat Min Sub Maximum Alert Level 1 | . 1 . . Low Security (%) 71 | 100 44 100 . Level 1 28 | . 55 . . Level 2 . | . . . . Level 3 . | . . . . Level 4 . | . . . . Level 5 . | . . . . High Security . | . . . . Max Security . | . . . . Peak Influence 279 | 5 279 97 . Initial 97 | . . 97 . Average 87 | . 160 10 . Influence Increases 734 | 5 714 15 . Destroy 0b10 Robot/C 480 | . 480 . . Destroy 0b10 Robot/NC 40 | 5 35 . . Destroy Leader 102 | . 102 . . Successful Hack 21 | . 21 . . Disable Machine 30 | . 30 . . Destroy Structure 1 | . 1 . . Partial Spotted 15 | . . 15 . Lose Combat Pursuer 45 | . 45 . . Influence Decreases 734 | 5 464 265 . Entered New Map 153 | . . 153 . Time Decay 551 | 5 434 112 . Lost Part 30 | . 30 . . Squads Dispatched 5 | . 4 1 . Investigation 2 | . 1 1 . Extermination . | . . . . Reinforcement 3 | . 3 . . Assault . | . . . . Garrison . | . . . . Intercept . | . . . . Searches Triggered . | . . . . Construction Impeded . | . . . . Haulers Reinforced . | . . . . Active Scanning Responses . | . . . . Cargo Convoy Interrupts . | . . . . Stealth | -11 -10 -10 -10 --------- Run | Yrd Mat Min Sub Distress Signals 1 | . 1 . . Communications Jammed . | . . . . Distress Signals . | . . . . Times Spotted 59 | . 36 13 10 Peak Tracking Total 9 | . 6 2 9 Tactical Retreats 2 | . 2 . . Traps | -11 -10 -10 -10 ------- Run | Yrd Mat Min Sub Traps Triggered 1 | . 1 . . Indirectly . | . . . . Trap Hack Attempts . | . . . . Triggered . | . . . . Disarmed . | . . . . Reprogrammed . | . . . . Reused . | . . . . Traps Extracted . | . . . . Installed . | . . . . Triggered . | . . . . Machines | -11 -10 -10 -10 ---------- Run | Yrd Mat Min Sub Machines Disabled 2 | . 2 . . Max in Single Turn 2 | . 2 . . Machines Repaired . | . . . . Machines Dismantled . | . . . . Machines Sabotaged . | . . . . Overloaded Fab Kills . | . . . . Hacking | -11 -10 -10 -10 --------- Run | Yrd Mat Min Sub Machines Accessed 4 | . 3 1 . Terminals 3 | . 3 . . Fabricators . | . . . . Repair Stations . | . . . . Recycling Units . | . . . . Scanalyzers . | . . . . Garrison Access . | . . . . Total Hacks 5 | . 4 1 . Successful 4 | . 3 1 . Failed 1 | . 1 . . Catastrophic . | . . . . Database Lockouts . | . . . . Manual . | . . . . Terminals 4 | . 4 . . Fabricators . | . . . . Repair Stations . | . . . . Recycling Units . | . . . . Scanalyzers . | . . . . Garrison Access . | . . . . Terminal Hacks 4 | . 3 1 . Open Door 1 | . . 1 . Locate Traps 1 | . 1 . . Hauler Manifests 1 | . 1 . . Registered Components 1 | . 1 . . Fabricator Hacks . | . . . . Repair Station Hacks . | . . . . Recycling Unit Hacks . | . . . . Scanalyzer . | . . . . Garrison Access Hacks . | . . . . Unauthorized Hacks . | . . . . Terminals . | . . . . Fabricators . | . . . . Repair Stations . | . . . . Recycling Units . | . . . . Scanalyzers . | . . . . Garrison Access . | . . . . Data Cores Recovered . | . . . . Used . | . . . . Hacking Detections 1 | . 1 . . Full Trace Events . | . . . . Feedback Events . | . . . . Feedback Blocked . | . . . . Robot Schematics Acquired . | . . . . Robots Built . | . . . . Authchips . | . . . . Time . | . . . . Total Robot Build Rating . | . . . . Part Schematics Acquired . | . . . . Parts Built . | . . . . Authchips . | . . . . Time . | . . . . Total Part Build Rating . | . . . . Part Studies Acquired . | . . . . Parts Repaired . | . . . . Time . | . . . . Parts Recycled . | . . . . Recycled Matter . | . . . . Retrieved Matter . | . . . . Retrieved Components . | . . . . Parts Scanalyzed . | . . . . Part Schematics Acquired . | . . . . Parts Damaged . | . . . . Bothacking | -11 -10 -10 -10 ------------ Run | Yrd Mat Min Sub Used RIF Installer . | . . . . Robots Hacked . | . . . . Non-combat . | . . . . Combat . | . . . . Robot Hacks Applied . | . . . . Relay Couplers Released . | . . . . Fabnet Peak Effective % . | . . . . Robots Rewired . | . . . . Allies Hacked . | . . . . Hacks Repelled . | . . . . Allies | -11 -10 -10 -10 -------- Run | Yrd Mat Min Sub Total Allies 3 | . . 3 . Largest Group 3 | . . 3 . Highest-Rated Group 40 | . . 40 . Highest-Rated Ally 16 | . . 16 . Total Orders . | . . . . Ally Attacks 22 | . . 22 . Total Damage 180 | . . 180 . Kills 1 | . . 1 . Allies Corrupted . | . . . . Allies Melted . | . . . . Intel | -11 -10 -10 -10 ------- Run | Yrd Mat Min Sub Active Infowar (turns) 660 | 59 499 102 . Terrain 558 | 59 499 . . Seismic 102 | . . 102 . Robot Analysis Total . | . . . . Derelict Logs Recovered . | . . . . Drone Launches . | . . . . Drone Recoveries . | . . . . Exploration | -11 -10 -10 -10 ------------- Run | Yrd Mat Min Sub Turns Passed 2714 | 185 1337 1050 142 Spaces Moved 1135 | 88 536 454 57 Core 1 | 1 . . . Treads 1134 | 87 536 454 57 Legs . | . . . . Wheels . | . . . . Hover . | . . . . Flight . | . . . . Fastest Speed 50 | 50 160 160 160 Average Speed 159 | 158 160 160 160 Slowest Speed 160 | 160 160 160 160 Overloaded Moves . | . . . . Propulsion Burnouts . | . . . . Robots Hopped . | . . . . Potential Cave-ins . | . . . . Cave-ins Triggered . | . . . . Exploration Rate (%) 31 | 4 55 62 6 Regions Visited 3 Branch Regions 2 Pre-discovered Areas . | . . . . Known Exits Taken . | . . . . Unknown Exits Taken 3 | 1 1 1 . Scrap Searched 2 | . . 2 . Spaces Dug . | . . . . Terrain Destroyed . | . . . . Melee . | . . . . Projectile . | . . . . AOE . | . . . . Terrain Rammed . | . . . . Walls Destroyed . | . . . . Machines Disabled . | . . . . Actions | -11 -10 -10 -10 --------- Run | Yrd Mat Min Sub Total 1822 | 122 848 748 104 Wait 512 | 18 190 261 43 Move 1132 | 87 535 453 57 Hop . | . . . . Pick Up 29 | 5 17 7 . Fast Attach 7 | 7 . . . Attach 7 | . 3 3 1 Detach . | . . . . Swap 8 | 1 5 2 . Drop 11 | . 6 5 . Fire 114 | 4 92 15 3 Melee . | . . . . Ram . | . . . . Kick . | . . . . Crush 2 | . . 2 . Escape Stasis . | . . . . Rewire . | . . . . Trap . | . . . . Miscellaneous . | . . . . Route ------- -11/Scrapyard -10/Materials (discovered 2 exits: [*Mat] / *Min) -10/Mines (discovered 3 exits: [*Mat x2] / [*Sub]) -10/Subcaves History --------- Turn | Location | Event 35 | -11/Scrapyard | Discovered new exit (range 14) 186 | -11/Scrapyard | Entered Materials 301 | -10/Materials | Build established: Mutant 617 | -10/Materials | Core integrity fell below 50% 732 | -10/Materials | Discovered new exit (range 15) 1131 | -10/Materials | Discovered new exit (range 15) 1186 | -10/Materials | Derelicts attacked the area 1455 | -10/Materials | Core integrity fell below 20% 1523 | -10/Materials | Entered Mines 1524 | -10/Mines | Assembled infested the area 1529 | -10/Mines | Assisted by a Guerilla fighting off Assembled 1733 | -10/Mines | Assisted by bots powering up and referring to "LRC-V3" 1818 | -10/Mines | Discovered new exit (range 5) 1870 | -10/Mines | Lost 3 allies 1945 | -10/Mines | Joined a pair of Derelicts in attacking an 0b10 outpost 2177 | -10/Mines | Discovered new exit (range 11) 2229 | -10/Mines | Met a Derelict shopkeep closing up shop 2565 | -10/Mines | Discovered new exit (range 6) 2573 | -10/Mines | Entered Subcaves 2699 | -10/Subcaves | Ambushed by swarm of Subdwellers 2715 | -10/Subcaves | Destroyed by VK-02N(R) with Subdweller Machine Gun Last Messages --------------- 10-EXX(R) comes tumbling into view. 02699_ QL-UFD(h): "The Subs are coming!" 02700_ 10-EXX(R) destroyed. 02702_ 5X-0AW(R) emerges from the Twisted Machinery. 02704_ RC-7Y0(R) emerges from the Twisted Machinery. 02704_ 1Q-720(g): "Sorry we're late! Had another grouchy Sub to deal with. Who's the new fellow?" 02706_ HV Slug penetrates RC-7Y0(R). 02706_ RC-7Y0(R) suffers critical hit (Destroy). 02708_ VK-02N(R) emerges from the Twisted Machinery. 02708_ Lgt. Cannon destroyed. 02708_ HV Slug penetrates RC-7Y0(R). 02708_ RC-7Y0(R) destroyed. 02712_ 5X-0AW(R) destroyed. 02714_ VS-GNT(R) suffers critical hit (Burn). 02715_ VS-GNT(R) destroyed. Map ----- +----------------------------------------------------+ | ?????????????????????????????????????????????????? | | ?????????????????????????????????????????????????? | | ?????????????????????????????????????????????????? | | ?????????????????????????????????????????????????? | | ?????????????????????????????????????????????????? | | ?????????????????????????????????????????????????? | | ?????????????????????????????????????????????????? | | ?????????????????????????????????????????????????? | | ?????????????????????????????????????????????????? | | ?????????????????????????????????????????????????? | | ?????????????????????????????????????????????????? | | ?????????????????????????????????????????????????? | | ????????????????????????#????????????????????????? | | ????????????????? ##??? ???????????????????????? | | ?????????????????? ### %??????????????????????? | | ??????????????????? ??????????????????????? | | ??????????????????? ?????????????#?????????? | | ???????????????????? s ????????????? #????????? | | ????????????????????# #???????????? ????????? | | ???????????????????## #???????????? ##??????? | | ??????????????????## ?????????????? %######## | | ??????????????????# s#?????????????? ! ? | | ?????????????????## s##?????????????#%= ???? | | ?????????????????# ;##????????????? ????# | | ???????????????#??# ##????????????# ?????# | | ???????????? ##"##= @ #???????????## #?????# | | ???????????# "RR%&% ##??????###??# #?????# | | ??????????????"#%![! ;##?????# ##?# ##????# | | ???????????????#%R&& h ####### ### ##???# | | ???????????????##&= # # # % ##### | | ????????????????## % %# | | ?????????????????### #### % ## | | ???????????????????###??## ### # % #### # # # | | ?????????????????????????#####?### #####??# ###### | | ?????????????????????????????????###??????###????? | | ?????????????????????????????????????????????????? | | ?????????????????????????????????????????????????? | | ?????????????????????????????????????????????????? | | ?????????????????????????????????????????????????? | | ?????????????????????????????????????????????????? | | ?????????????????????????????????????????????????? | | ?????????????????????????????????????????????????? | | ?????????????????????????????????????????????????? | | ?????????????????????????????????????????????????? | | ?????????????????????????????????????????????????? | | ?????????????????????????????????????????????????? | | ?????????????????????????????????????????????????? | | ?????????????????????????????????????????????????? | | ?????????????????????????????????????????????????? | | ?????????????????????????????????????????????????? | +----------------------------------------------------+ Best States ------------- Heat Dissipation 25 Energy Generation 10 Energy Capacity 250 Matter Stores 300 Matter Capacity 300 Sight Range 16 Terrain Scan Range 16 Terrain Scan Density 10 Armor Coverage 150 Core Shielding 20 Evasion (%) 40 Recoil Reduction 2 Item Schematics ----------------- None Robot Schematics ------------------ None Fabricated ------------ Nothing Repaired ---------- Nothing Studied --------- None Alien Tech Used ----------------- None Achievements -------------- None Challenges ------------ None Game ------ Seed NeutrinoPhaseMeganuke Manual? 0 Play Time 00:26:21 Cumulative 16.5 hours Start 2026.08.14 @ 15:46:55 End 2026.08.14 @ 16:11:56 Sessions 1 Manual Loads 0 Difficulty Rogue Special Mode None Game No. 16 Rogue 16 Adventurer 0 Explorer 0 Win Type - Total 0 Types 0/0/0/0/0/0/0/0/0/0 Lore% 4 Gallery% 14 Achievement% 13 Wizard Run 0 Options --------- Layout 1 ASCII 0 Keyboard 0 Movement Mouse Keybinds 0 Fullscreen 1 Font 24/Smallcaps Map View 50x35 Zoom Use 0% Tactical HUD 1 Map Filters NONE Filters NONE Steam 1 RUN: 8e47e836-95ac-4cfb-b512-de7fa5ae9cf2